fUST/lending_fUST_20250817
["ID","MTS","AMOUNT","RATE_DAILY","PERIOD"]
[379680238,1755365142571,369.0287212,0.0001979,2]
[379680252,1755365238743,7634.7966262,0.00019585,2]
[379680254,1755365265051,453.7308976,0.00019585,2]
[379680255,1755365265075,9546.2691024,0.00019585,2]
[379680256,1755365268452,165.7339152,0.00018,2]
[379680262,1755365310751,287.9969824,0.00017,2]
[379680263,1755365310772,10000.0,0.00017,2]
[379680264,1755365310793,10000.0,0.00017,2]
[379680265,1755365310815,10000.0,0.00017,2]
[379680266,1755365310836,10000.0,0.00017,2]
[379680267,1755365310858,505.20566977,0.00017,2]
[379680271,1755365316792,151.0,0.0002,120]
[379680306,1755365432259,-333.198687,0.00020187,2]
[379680308,1755365432269,-500.0,0.00020573,2]
[379680310,1755365432279,-192.61,0.00020576,3]
[379680312,1755365432288,-577.83,0.00020576,3]
[379680314,1755365432297,-300.0,0.00020582,2]
[379680316,1755365432307,-1200.0,0.00020582,2]
[379680318,1755365432316,-480.0,0.00020583,2]
[379680320,1755365432325,-358.421313,0.00020583,2]
[379680337,1755365432444,-841.578687,0.00020583,2]
[379680340,1755365432454,-528.05224536,0.00020583,2]
[379680342,1755365432463,-468.15084705,0.00020583,2]
[379680344,1755365432473,-480.0,0.00020583,2]
[379680346,1755365432482,-480.0,0.00020583,2]
[379680348,1755365432492,-480.0,0.00020583,2]
[379680350,1755365432502,-480.0,0.00020583,2]
[379680352,1755365432512,-1077.13,0.00020583,2]
[379680354,1755365432522,-549.63,0.00020583,2]
[379680356,1755365432531,-1337.97,0.00020583,2]
[379680358,1755365432541,-4889.8,0.00020583,2]
[379680360,1755365432550,-460.0,0.00020583,2]
[379680362,1755365432559,-480.0,0.00020583,2]
[379680365,1755365432569,-460.0,0.00020584,2]
[379680366,1755365432579,-572.88712675,0.00020584,2]
[379680368,1755365432588,-480.0,0.00020584,2]
[379680371,1755365432597,-1030.32,0.00020584,2]
[379680373,1755365432607,-480.0,0.00020584,2]
[379680374,1755365432616,-629.07120505,0.00020584,2]
[379680376,1755365432626,-480.0,0.00020584,2]
[379680378,1755365432635,-492.12,0.00020584,2]
[379680380,1755365432644,-480.0,0.00020584,2]
[379680382,1755365432654,-480.0,0.00020584,2]
[379680384,1755365432663,-480.0,0.00020584,2]
[379680386,1755365432672,-480.0,0.00020584,2]
[379680388,1755365432682,-1694.59,0.00020584,2]
[379680390,1755365432691,-1004.17,0.00020584,2]
[379680392,1755365432700,-1396.54,0.00020584,2]
[379680394,1755365432710,-480.0,0.00020584,2]
[379680396,1755365432719,-461.63460395,0.00020584,2]
[379680398,1755365432729,-480.0,0.00020584,2]
[379680400,1755365432737,-908.0,0.00020584,2]
[379680402,1755365432747,-480.0,0.00020584,2]
[379680404,1755365432756,-530.71,0.00020584,2]
[379680406,1755365432765,-460.0,0.00020584,2]
[379680408,1755365432774,-480.0,0.00020584,2]
[379680410,1755365432783,-480.0,0.00020584,2]
[379680412,1755365432792,-1446.98,0.00020584,2]
[379680414,1755365432802,-480.0,0.00020584,2]
[379680415,1755365432811,-577.47,0.00020584,2]
[379680416,1755365432821,-1754.37,0.00020584,2]
[379680417,1755365432830,-480.0,0.00020584,2]
[379680418,1755365432839,-1083.63,0.00020584,2]
[379680419,1755365432849,-480.0,0.00020584,2]
[379680420,1755365432858,-480.0,0.00020584,2]
[379680422,1755365432867,-500.0,0.00020584,2]
[379680424,1755365432878,-480.0,0.00020584,2]
[379680426,1755365432888,-1523.96,0.00020584,2]
[379680428,1755365432897,-480.0,0.00020584,2]
[379680430,1755365432906,-480.0,0.00020584,2]
[379680432,1755365432915,-480.0,0.00020584,2]
[379680434,1755365432925,-480.0,0.00020584,2]
[379680436,1755365432934,-1712.92,0.00020584,2]
[379680438,1755365432943,-1057.31,0.00020584,2]
[379680440,1755365432953,-480.0,0.00020584,2]
[379680442,1755365432962,-7919.7,0.00020584,2]
[379680444,1755365432971,-1161.57,0.00020584,2]
[379680446,1755365432981,-480.0,0.00020584,2]
[379680448,1755365432990,-1530.11,0.00020584,2]
[379680450,1755365433000,-1316.85,0.00020584,2]
[379680452,1755365433010,-617.6,0.00020584,2]
[379680454,1755365433019,-480.0,0.00020584,2]
[379680456,1755365433029,-480.0,0.00020584,2]
[379680458,1755365433038,-480.0,0.00020584,2]
[379680460,1755365433047,-480.0,0.00020584,2]
[379680462,1755365433057,-480.0,0.00020584,2]
[379680464,1755365433067,-480.0,0.00020584,2]
[379680466,1755365433077,-2991.38,0.00020584,2]
[379680468,1755365433086,-633.52,0.00020584,2]
[379680470,1755365433096,-480.0,0.00020584,2]
[379680472,1755365433105,-480.0,0.00020584,2]
[379680473,1755365433115,-480.0,0.00020584,2]
[379680475,1755365433124,-4577.52,0.00020584,2]
[379680478,1755365433134,-480.0,0.00020584,2]
[379680480,1755365433144,-460.59291384,0.00020584,2]
[379680482,1755365433154,-651.25,0.00020584,2]
[379680483,1755365433163,-620.27,0.00020584,2]
[379680486,1755365433173,-480.0,0.00020584,2]
[379680487,1755365433183,-733.04,0.00020584,2]
[379680489,1755365433192,-1303.24,0.00020584,2]
[379680491,1755365433201,-480.0,0.00020584,2]
[379680493,1755365433211,-480.0,0.00020584,2]
[379680495,1755365433220,-1515.76,0.00020584,2]
[379680496,1755365433229,-688.27,0.00020584,2]
[379680497,1755365433239,-3431.49,0.00020584,2]
[379680498,1755365433249,-480.0,0.00020584,2]
[379680499,1755365433258,-480.0,0.00020584,2]
[379680500,1755365433267,-480.0,0.00020584,2]
[379680501,1755365433276,-603.3,0.00020584,2]
[379680502,1755365433286,-480.0,0.00020584,2]
[379680503,1755365433296,-480.0,0.00020584,2]
[379680504,1755365433306,-480.0,0.00020584,2]
[379680505,1755365433323,-1157.2,0.00020584,2]
[379680506,1755365433362,-480.0,0.00020584,2]
[379680507,1755365433371,-480.0,0.00020584,2]
[379680508,1755365433382,-1394.83,0.00020584,2]
[379680509,1755365433392,-2017.94,0.00020584,2]
[379680510,1755365433402,-480.0,0.00020584,2]
[379680511,1755365433412,-480.0,0.00020584,2]
[379680512,1755365433424,-480.0,0.00020584,2]
[379680513,1755365433434,-480.0,0.00020584,2]
[379680514,1755365433444,-480.0,0.00020584,2]
[379680515,1755365433453,-1341.93,0.00020584,2]
[379680516,1755365433463,-532.7,0.00020584,2]
[379680517,1755365433473,-480.0,0.00020584,2]
[379680518,1755365433482,-619.7,0.00020584,2]
[379680519,1755365433492,-480.0,0.00020584,2]
[379680520,1755365433501,-480.0,0.00020584,2]
[379680521,1755365433511,-480.0,0.00020584,2]
[379680522,1755365433520,-460.0,0.00020584,2]
[379680523,1755365433530,-480.0,0.00020584,2]
[379680524,1755365433539,-1133.08,0.00020584,2]
[379680525,1755365433549,-480.0,0.00020585,2]
[379680526,1755365433558,-480.0,0.00020585,2]
[379680527,1755365433567,-480.0,0.00020585,2]
[379680528,1755365433577,-462.26132708,0.00020585,2]
[379680529,1755365433586,-480.0,0.00020585,2]
[379680530,1755365433595,-480.0,0.00020585,2]
[379680531,1755365433604,-460.23599353,0.00020585,2]
[379680532,1755365433614,-464.84430149,0.00020585,2]
[379680533,1755365433623,-480.0,0.00020585,2]
[379680534,1755365433632,-480.0,0.00020585,2]
[379680535,1755365433641,-461.70485593,0.00020585,2]
[379680536,1755365433651,-460.0,0.00020585,2]
[379680537,1755365433661,-558.3046011,0.00020585,2]
[379680538,1755365433670,-480.0,0.00020585,2]
[379680539,1755365433679,-480.0,0.00020585,2]
[379680540,1755365433688,-480.0,0.00020585,2]
[379680541,1755365433698,-480.0,0.00020585,2]
[379680542,1755365433707,-480.0,0.00020585,2]
[379680543,1755365433716,-480.0,0.00020585,2]
[379680544,1755365433726,-480.0,0.00020585,2]
[379680545,1755365433735,-480.0,0.00020585,2]
[379680546,1755365433744,-480.0,0.00020585,2]
[379680547,1755365433754,-480.0,0.00020585,2]
[379680548,1755365433763,-264.75646039,0.00020585,2]
[379680549,1755365433772,-460.58498551,0.00020585,2]
[379680550,1755365433781,-480.0,0.00020585,2]
[379680551,1755365433791,-480.0,0.00020585,2]
[379680552,1755365433800,-480.0,0.00020585,2]
[379680553,1755365433811,-480.0,0.00020585,2]
[379680554,1755365433820,-480.0,0.00020585,2]
[379680555,1755365433830,-480.0,0.00020585,2]
[379680556,1755365433839,-480.0,0.00020585,2]
[379680557,1755365433848,-480.0,0.00020585,2]
[379680558,1755365433857,-480.0,0.00020585,2]
[379680559,1755365433866,-527.84,0.00020585,2]
[379680560,1755365433876,-480.0,0.00020585,2]
[379680561,1755365433885,-2346.19,0.00020585,2]
[379680562,1755365433894,-480.0,0.00020585,2]
[379680563,1755365433904,-480.0,0.00020585,2]
[379680564,1755365433913,-480.0,0.00020585,2]
[379680565,1755365433922,-480.0,0.00020585,2]
[379680566,1755365433932,-480.0,0.00020585,2]
[379680567,1755365433941,-655.5,0.00020585,2]
[379680568,1755365433951,-480.0,0.00020585,2]
[379680569,1755365433960,-771.71,0.00020585,2]
[379680570,1755365433969,-480.0,0.00020585,2]
[379680571,1755365433978,-480.0,0.00020585,2]
[379680572,1755365433988,-562.31,0.00020585,2]
[379680573,1755365433997,-480.0,0.00020585,2]
[379680574,1755365434007,-480.0,0.00020585,2]
[379680575,1755365434017,-464.78658964,0.00020585,2]
[379680576,1755365434027,-480.0,0.00020585,2]
[379680577,1755365434036,-480.0,0.00020585,2]
[379680578,1755365434203,-480.0,0.00020585,2]
[379680579,1755365434214,-480.0,0.00020585,2]
[379680580,1755365434224,-480.0,0.00020585,2]
[379680581,1755365434234,-480.0,0.00020585,2]
[379680582,1755365434243,-480.0,0.00020585,2]
[379680583,1755365434252,-480.0,0.00020585,2]
[379680584,1755365434262,-480.0,0.00020585,2]
[379680585,1755365434272,-480.0,0.00020585,2]
[379680586,1755365434281,-480.0,0.00020585,2]
[379680587,1755365434291,-480.0,0.00020585,2]
[379680588,1755365434300,-480.0,0.00020585,2]
[379680589,1755365434310,-480.0,0.00020585,2]
[379680590,1755365434319,-480.0,0.00020585,2]
[379680591,1755365434329,-480.0,0.00020585,2]
[379680592,1755365434343,-480.0,0.00020585,2]
[379680593,1755365434352,-480.0,0.00020585,2]
[379680594,1755365434362,-480.0,0.00020585,2]
[379680595,1755365434371,-480.0,0.00020585,2]
[379680596,1755365434382,-480.0,0.00020585,2]
[379680597,1755365434391,-460.0,0.00020585,2]
[379680598,1755365434400,-480.0,0.00020585,2]
[379680599,1755365434410,-326.91305723,0.00020585,2]
[379680600,1755365434419,-480.0,0.00020585,2]
[379680601,1755365434431,-460.0,0.00020585,2]
[379680602,1755365434441,-480.0,0.00020585,2]
[379680603,1755365434450,-480.0,0.00020585,2]
[379680604,1755365434461,-805.52,0.00020585,2]
[379680605,1755365434470,-480.0,0.00020585,2]
[379680606,1755365434479,-480.0,0.00020585,2]
[379680607,1755365434489,-480.0,0.00020585,2]
[379680608,1755365434498,-590.49129169,0.00020585,2]
[379680609,1755365434507,-480.0,0.00020585,2]
[379680610,1755365434517,-480.0,0.00020585,2]
[379680611,1755365434527,-480.0,0.00020585,2]
[379680612,1755365434535,-480.0,0.00020585,2]
[379680613,1755365434545,-480.0,0.00020585,2]
[379680614,1755365434555,-480.0,0.00020585,2]
[379680615,1755365434564,-480.0,0.00020585,2]
[379680616,1755365434574,-500.0,0.00020585,2]
[379680617,1755365434583,-500.0,0.00020585,2]
[379680618,1755365434592,-480.0,0.00020585,2]
[379680619,1755365434602,-480.0,0.00020585,2]
[379680620,1755365434611,-480.0,0.00020585,2]
[379680621,1755365434620,-480.0,0.00020585,2]
[379680622,1755365434629,-480.0,0.00020585,2]
[379680623,1755365434639,-540.16,0.00020585,2]
[379680624,1755365434648,-480.0,0.00020585,2]
[379680625,1755365434658,-196.8678345,0.00020585,2]
[379680626,1755365434668,-241.84430903,0.00020585,2]
[379680627,1755365434677,-480.0,0.00020585,2]
[379680628,1755365434686,-480.0,0.00020585,2]
[379680629,1755365434695,-480.0,0.00020585,2]
[379680630,1755365434704,-480.0,0.00020585,2]
[379680631,1755365434714,-480.0,0.00020585,2]
[379680632,1755365434723,-480.0,0.00020585,2]
[379680633,1755365434732,-480.0,0.00020585,2]
[379680634,1755365434741,-480.0,0.00020585,2]
[379680635,1755365434751,-480.0,0.00020585,2]
[379680636,1755365434760,-480.0,0.00020585,2]
[379680637,1755365434769,-480.0,0.00020585,2]
[379680638,1755365434779,-1545.86,0.00020585,2]
[379680639,1755365434788,-480.0,0.00020585,2]
[379680640,1755365434797,-480.0,0.00020585,2]
[379680641,1755365434807,-480.0,0.00020585,2]
[379680642,1755365434815,-1012.92,0.00020585,2]
[379680643,1755365434824,-1304.23,0.00020585,2]
[379680644,1755365434833,-480.0,0.00020585,2]
[379680645,1755365434842,-500.0,0.00020585,2]
[379680646,1755365434852,-500.0,0.00020585,2]
[379680647,1755365434861,-500.0,0.00020585,2]
[379680648,1755365434870,-460.3305175,0.00020585,2]
[379680649,1755365434880,-480.0,0.00020585,2]
[379680650,1755365434889,-480.0,0.00020585,2]
[379680651,1755365434899,-1776.87,0.00020585,2]
[379680652,1755365434909,-242.02996458,0.00020585,2]
[379680653,1755365434919,-480.0,0.00020585,2]
[379680654,1755365434930,-1373.27,0.00020585,2]
[379680655,1755365434939,-480.0,0.00020585,2]
[379680656,1755365434948,-480.0,0.00020585,2]
[379680657,1755365434958,-632.84,0.00020585,2]
[379680658,1755365434968,-480.0,0.00020585,2]
[379680659,1755365434978,-5095.22,0.00020585,2]
[379680660,1755365434987,-480.0,0.00020585,2]
[379680661,1755365434996,-480.0,0.00020585,2]
[379680662,1755365435006,-480.0,0.00020585,2]
[379680663,1755365435016,-480.0,0.00020585,2]
[379680664,1755365435026,-480.0,0.00020585,2]
[379680665,1755365435035,-480.0,0.00020585,2]
[379680666,1755365435044,-480.0,0.00020585,2]
[379680667,1755365435054,-1092.02,0.00020585,2]
[379680668,1755365435063,-480.0,0.00020585,2]
[379680669,1755365435072,-462.48415978,0.00020585,2]
[379680670,1755365435081,-480.0,0.00020585,2]
[379680671,1755365435091,-2048.73336776,0.00020585,2]
[379680672,1755365435132,-438.05438573,0.00020585,2]
[379680673,1755365435143,-2238.26155888,0.00020585,2]
[379680705,1755365438369,-480.0,0.00020583,2]
[379680707,1755365438380,-480.0,0.00020584,2]
[379680709,1755365438390,-8686.25068763,0.00020585,2]
[379680711,1755365438400,-480.0,0.00020585,2]
[379680712,1755365438409,-480.0,0.00020585,2]
[379680713,1755365438422,-440.0,0.00020585,2]
[379680715,1755365438431,-480.0,0.00020585,2]
[379680716,1755365438440,-2054.08,0.00020585,2]
[379680717,1755365438450,-200.78859466,0.00020585,2]
[379680718,1755365438460,-480.0,0.00020585,2]
[379680719,1755365438469,-480.0,0.00020585,2]
[379680720,1755365438479,-480.0,0.00020585,2]
[379680721,1755365438488,-480.0,0.00020585,2]
[379680722,1755365438497,-977.62,0.00020585,2]
[379680723,1755365438507,-480.0,0.00020585,2]
[379680724,1755365438515,-480.0,0.00020585,2]
[379680725,1755365438525,-526.18,0.00020585,2]
[379680726,1755365438534,-480.0,0.00020585,2]
[379680727,1755365438543,-480.0,0.00020585,2]
[379680728,1755365438552,-480.0,0.00020585,2]
[379680729,1755365438564,-715.02,0.00020585,2]
[379680730,1755365438577,-480.0,0.00020585,2]
[379680731,1755365438606,-1341.57,0.00020585,2]
[379680732,1755365438628,-480.0,0.00020585,2]
[379680733,1755365438639,-480.0,0.00020585,2]
[379680734,1755365438648,-480.0,0.00020585,2]
[379680735,1755365438657,-480.0,0.00020585,2]
[379680736,1755365438669,-480.0,0.00020585,2]
[379680737,1755365438678,-480.0,0.00020585,2]
[379680738,1755365438687,-480.0,0.00020585,2]
[379680739,1755365438697,-584.21,0.00020585,2]
[379680740,1755365438707,-480.0,0.00020585,2]
[379680741,1755365438716,-56689.0836224,0.00020586,2]
[379680742,1755365438725,-480.0,0.00020684,2]
[379680743,1755365438734,-480.0,0.00020684,2]
[379680745,1755365438743,-480.0,0.00020684,2]
[379680747,1755365438753,-500.0,0.00020684,2]
[379680749,1755365438762,-500.0,0.00020684,2]
[379680751,1755365438771,-500.0,0.00020684,2]
[379680753,1755365438780,-500.0,0.00020684,2]
[379680755,1755365438789,-500.0,0.00020684,2]
[379680757,1755365438798,-598.7,0.00020685,2]
[379680759,1755365438807,-480.0,0.00020685,2]
[379680761,1755365438817,-920.63,0.00020685,2]
[379680763,1755365438827,-894.34,0.00020685,2]
[379680765,1755365438836,-480.0,0.00020685,2]
[379680767,1755365438845,-480.0,0.00020685,2]
[379680769,1755365438854,-480.0,0.00020685,2]
[379680771,1755365438863,-347.56008768,0.00020685,2]
[379680773,1755365438872,-480.0,0.00020685,2]
[379680775,1755365438881,-1393.76,0.00020685,2]
[379680777,1755365438890,-624.17,0.00020685,2]
[379680779,1755365438900,-480.0,0.00020685,2]
[379680780,1755365438909,-460.0,0.00020685,2]
[379680781,1755365438919,-480.0,0.00020685,2]
[379680782,1755365438927,-629.24876149,0.00020685,2]
[379680783,1755365438936,-480.0,0.00020685,2]
[379680784,1755365438945,-729.64,0.00020685,2]
[379680785,1755365438955,-480.0,0.00020685,2]
[379680786,1755365438964,-480.0,0.00020685,2]
[379680787,1755365438973,-480.0,0.00020685,2]
[379680788,1755365438983,-480.0,0.00020685,2]
[379680789,1755365438992,-480.0,0.00020685,2]
[379680790,1755365439002,-480.0,0.00020685,2]
[379680791,1755365439011,-598.08,0.00020685,2]
[379680792,1755365439020,-480.0,0.00020685,2]
[379680793,1755365439030,-480.0,0.00020685,2]
[379680794,1755365439039,-480.0,0.00020685,2]
[379680795,1755365439049,-853.97,0.00020685,2]
[379680796,1755365439058,-480.0,0.00020685,2]
[379680797,1755365439067,-480.0,0.00020685,2]
[379680798,1755365439076,-518.78,0.00020685,2]
[379680799,1755365439085,-1727.23,0.00020685,2]
[379680800,1755365439094,-480.0,0.00020685,2]
[379680801,1755365439103,-480.0,0.00020685,2]
[379680802,1755365439112,-237.90426437,0.00020685,2]
[379680803,1755365439122,-480.0,0.00020685,2]
[379680804,1755365439131,-480.0,0.00020685,2]
[379680805,1755365439140,-480.0,0.00020685,2]
[379680806,1755365439149,-480.0,0.00020685,2]
[379680807,1755365439159,-480.0,0.00020685,2]
[379680808,1755365439168,-480.0,0.00020685,2]
[379680809,1755365439177,-755.04,0.00020685,2]
[379680810,1755365439186,-460.0,0.00020685,2]
[379680811,1755365439195,-480.0,0.00020685,2]
[379680812,1755365439204,-480.0,0.00020685,2]
[379680813,1755365439213,-465.83713181,0.00020685,2]
[379680814,1755365439222,-865.47,0.00020685,2]
[379680815,1755365439231,-480.0,0.00020685,2]
[379680816,1755365439241,-661.47,0.00020685,2]
[379680817,1755365439250,-1222.12,0.00020685,2]
[379680818,1755365439259,-910.43,0.00020685,2]
[379680819,1755365439269,-480.0,0.00020685,2]
[379680820,1755365439278,-480.0,0.00020685,2]
[379680821,1755365439287,-1903.99,0.00020685,2]
[379680822,1755365439296,-480.0,0.00020685,2]
[379680823,1755365439305,-1358.46,0.00020685,2]
[379680824,1755365439314,-480.0,0.00020685,2]
[379680825,1755365439323,-1308.56,0.00020685,2]
[379680826,1755365439333,-486.41,0.00020685,2]
[379680827,1755365439489,-500.0,0.00020685,2]
[379680828,1755365439500,-500.0,0.00020685,2]
[379680829,1755365439510,-300.0,0.00020685,2]
[379680830,1755365439519,-480.0,0.00020685,2]
[379680831,1755365439528,-480.0,0.00020685,2]
[379680832,1755365439537,-3616.21,0.00020685,2]
[379680833,1755365439546,-460.0,0.00020685,2]
[379680834,1755365439556,-1591.75,0.00020685,2]
[379680835,1755365439565,-939.2,0.00020685,2]
[379680836,1755365439574,-480.0,0.00020685,2]
[379680837,1755365439583,-1082.65,0.00020685,2]
[379680838,1755365439592,-563.2,0.00020685,2]
[379680839,1755365439601,-1517.3,0.00020685,2]
[379680840,1755365439610,-480.0,0.00020685,2]
[379680841,1755365439620,-607.79,0.00020685,2]
[379680842,1755365439629,-480.0,0.00020685,2]
[379680843,1755365439638,-918.79,0.00020685,2]
[379680844,1755365439647,-637.69,0.00020685,2]
[379680845,1755365439657,-637.69,0.00020685,2]
[379680846,1755365439666,-637.69,0.00020685,2]
[379680847,1755365439675,-480.0,0.00020685,2]
[379680848,1755365439684,-500.96926008,0.00020685,2]
[379680849,1755365439693,-500.0,0.00020685,2]
[379680850,1755365439702,-500.0,0.00020685,2]
[379680851,1755365439711,-480.0,0.00020686,2]
[379680852,1755365439720,-480.0,0.00020686,2]
[379680853,1755365439729,-480.0,0.00020686,2]
[379680854,1755365439738,-480.0,0.00020686,2]
[379680855,1755365439748,-618.19,0.00020686,2]
[379680856,1755365439757,-500.0,0.00020686,2]
[379680857,1755365439767,-500.0,0.00020686,2]
[379680858,1755365439776,-500.0,0.00020686,2]
[379680859,1755365439785,-500.0,0.00020686,2]
[379680860,1755365439794,-14583.11,0.00020686,2]
[379680861,1755365439804,-2321.32,0.00020686,2]
[379680862,1755365439813,-637.69,0.00020686,2]
[379680863,1755365439823,-637.69,0.00020686,2]
[379680864,1755365439832,-637.69,0.00020686,2]
[379680865,1755365439841,-500.0,0.00020686,2]
[379680866,1755365439850,-500.0,0.00020686,2]
[379680867,1755365439859,-500.0,0.00020686,2]
[379680868,1755365439869,-500.0,0.00020686,2]
[379680870,1755365439878,-10510.29,0.00020686,2]
[379680871,1755365439887,-480.0,0.00020687,2]
[379680872,1755365439896,-480.0,0.00020687,2]
[379680874,1755365439905,-480.0,0.00020687,2]
[379680875,1755365439915,-480.0,0.00020687,2]
[379680876,1755365439924,-480.0,0.00020687,2]
[379680877,1755365439934,-480.0,0.00020687,2]
[379680878,1755365439943,-480.0,0.00020687,2]
[379680879,1755365439953,-1218.95,0.00020687,2]
[379680880,1755365439962,-480.0,0.00020687,2]
[379680881,1755365439972,-480.0,0.00020687,2]
[379680882,1755365439981,-441.28509788,0.00020687,2]
[379680883,1755365439990,-480.0,0.00020687,2]
[379680884,1755365440000,-480.0,0.00020687,2]
[379680885,1755365440009,-490.42,0.00020687,2]
[379680886,1755365440025,-480.0,0.00020687,2]
[379680887,1755365440044,-460.11570537,0.00020687,2]
[379680888,1755365440064,-480.0,0.00020687,2]
[379680889,1755365440073,-1175.1,0.00020687,2]
[379680890,1755365440083,-480.0,0.00020687,2]
[379680891,1755365440093,-480.0,0.00020687,2]
[379680892,1755365440103,-480.0,0.00020687,2]
[379680893,1755365440112,-480.0,0.00020687,2]
[379680894,1755365440122,-480.0,0.00020687,2]
[379680895,1755365440132,-480.0,0.00020687,2]
[379680896,1755365440141,-480.0,0.00020687,2]
[379680897,1755365440151,-4109.58,0.00020687,2]
[379680898,1755365440161,-480.0,0.00020687,2]
[379680899,1755365440171,-480.0,0.00020687,2]
[379680900,1755365440181,-480.0,0.00020687,2]
[379680901,1755365440191,-480.0,0.00020687,2]
[379680902,1755365440200,-563.71,0.00020687,2]
[379680903,1755365440210,-480.0,0.00020687,2]
[379680904,1755365440220,-4755.31,0.00020687,2]
[379680905,1755365440230,-521.4,0.00020687,2]
[379680906,1755365440240,-637.69,0.00020688,2]
[379680907,1755365440250,-500.0,0.00020688,2]
[379680908,1755365440260,-500.0,0.00020688,2]
[379680909,1755365440269,-637.69,0.00020765,2]
[379680910,1755365440279,-500.0,0.00020765,2]
[379680911,1755365440289,-500.0,0.00020772,2]
[379680912,1755365440298,-644.14114051,0.00020827,2]
[379680913,1755365440308,-480.0,0.00020857,2]
[379680914,1755365440317,-480.0,0.00020857,2]
[379680915,1755365440328,-480.0,0.00020857,2]
[379680916,1755365440342,-1077.13,0.00020857,2]
[379680917,1755365440351,-549.63,0.00020857,2]
[379680918,1755365440360,-1337.97,0.00020857,2]
[379680919,1755365440369,-4889.8,0.00020857,2]
[379680920,1755365440378,-480.0,0.00020857,2]
[379680921,1755365440387,-480.0,0.00020857,2]
[379680922,1755365440397,-480.0,0.00020858,2]
[379680923,1755365440407,-1030.32,0.00020858,2]
[379680924,1755365440417,-480.0,0.00020858,2]
[379680925,1755365440428,-480.0,0.00020858,2]
[379680926,1755365440437,-492.12,0.00020858,2]
[379680927,1755365440447,-480.0,0.00020858,2]
[379680928,1755365440458,-460.0,0.00020858,2]
[379680929,1755365440467,-480.0,0.00020858,2]
[379680930,1755365440477,-480.0,0.00020858,2]
[379680931,1755365440486,-1694.59,0.00020858,2]
[379680932,1755365440497,-1004.17,0.00020858,2]
[379680933,1755365440507,-1396.54,0.00020858,2]
[379680934,1755365440516,-480.0,0.00020858,2]
[379680935,1755365440525,-480.0,0.00020858,2]
[379680936,1755365440535,-908.0,0.00020858,2]
[379680937,1755365440544,-480.0,0.00020858,2]
[379680938,1755365440554,-530.71,0.00020858,2]
[379680939,1755365440563,-480.0,0.00020858,2]
[379680940,1755365440572,-1446.98,0.00020858,2]
[379680941,1755365440582,-480.0,0.00020858,2]
[379680942,1755365440591,-577.47,0.00020858,2]
[379680943,1755365440600,-1754.37,0.00020858,2]
[379680944,1755365440611,-480.0,0.00020858,2]
[379680945,1755365440620,-1083.63,0.00020858,2]
[379680946,1755365440629,-480.0,0.00020858,2]
[379680947,1755365440639,-480.0,0.00020858,2]